{"text_format":"1","workbook":"xlsx","n_sheets":3,"sheets":["data","ورقة2","ورقة1"],"not_rendered":{"charts":0,"images":0,"macros":1,"external_links":0,"defined_names":0,"comments":0,"pivot_tables":0},"unopened":[],"bounds":{"document_bytes":16777216,"sheet_cells":100000,"rows_first":2000,"rows_last":500,"rows_between":2000,"halvings":0,"cell_chars":16384,"cell_head_chars":4096},"cells_cut":0,"cells_raw":0,"read":"whole","date_system":"1900"}

{"sheet":"data","index":0,"n_rows":26,"n_cols":18,"rows_kept":26,"cut":false,"hidden":false,"merged":[[4,17,4,23],[5,17,5,23],[0,1,0,7],[0,9,0,15],[0,17,1,23],[2,17,2,23],[3,17,3,23],[9,1,11,15],[12,1,14,15],[15,1,17,15],[18,1,20,15],[25,5,31,13]]}
[null,"قبل القرار",null,null,null,null,null,null,null,"بعد القرار",null,null,null,null,null,null,null,"النتيجة النهائية"]
["ت","اسم الطالب","إسلامية","عربي","إنكليزي","رياضيات","كيمياء","فيزياء",null,"اسم الطالب","إسلامية","عربي","إنكليزي","رياضيات","كيمياء","فيزياء"]
[1,"موسى سالم",44,48,44,46,80,70,null,"موسى سالم",44,50,44,50,80,70,null,"قرار بالانكليزي ومعيد في الإسلامية والعربي"]
[2,"سامح كريم",40,40,40,40,40,41,null,"سامح كريم",40,40,40,40,40,50,null,"قرار بالكيمياء والفيزياء ومعيد في الإسلامية"]
[]
[]
[]
[]
[]
[null,"1- الموضوع ان هناك قرار 10 درجات توزع على المواد المشمولة بالقرار واريد من البرنامج انه يقوم تلقائيا باضافتها للمواد التي تستحق القرار "]
[]
[]
[null,"2- ال (10) درجات توزع لمرة واحدة لكل طالب ففي الطالب ( موسى سالم) اخذ القرار في العربي اولا والرياضيات ثانيا ورسب في بقيه المواد"]
[]
[]
[null,"3- الاولويه في توزيع الدرجه تكون للماده الاقرب لل ٥٠ فالاقرب بمعنى ان الماده التي درجتها ٤٩ تاخذ القرار قبل الماده التي درجتها ٤٨ وهكذا"]
[]
[]
[null,"4- في حقل النتيجة النهائية هل يمكن ان تظهر العبارات كما مكتوب وفق معادلة تتغير بتغير الدرجات مستقبلا ام لا بد من كتابتها يدويا"]
[]
[]
[]
[]
[]
[]
[null,null,null,null,null,"ولكم جزيل الشكر علما اني حاولت اكثر من مره ولم اجد طريقة وانا أقوم حاليا بعمل الموضوع يدويا لان عدد الطلاب كثير وبالمئات "]

{"sheet":"ورقة2","index":1,"n_rows":109,"n_cols":14,"rows_kept":109,"cut":false,"hidden":false,"merged":[[11,8,11,17]]}
["اسم الطالب","إسلامية","عربي","إنكليزي","رياضيات","كيمياء","فيزياء"]
["موسى سالم",44,99,99,99,99,"قرار"]
[]
[]
[]
[null,"إسلامية","عربي","إنكليزي","رياضيات","كيمياء","فيزياء"]
["قرار","قرار في الإسلامية","قرار في العربي","قرار في الإنكليزي","قرار في الرياضيات","قرار في الكيمياء","قرار في الفيزياء"]
["معيد","معيد في الإسلامية","معيد في العربي","معيد في الإنكليزي","معيد في الرياضيات","معيد في الكيمياء","معيد في الفيزياء",null,"إسلامية","عربي","إنكليزي","رياضيات","كيمياء","فيزياء"]
[0,"معيد في الإسلامية","معيد في العربي","معيد في الإنكليزي","معيد في الرياضيات","معيد في الكيمياء","معيد في الفيزياء",null,{"$f":"VLOOKUP(B2,$A$7:$G$109,2,FALSE)","v":"معيد في الإسلامية"},{"$f":"VLOOKUP(C2,$A$7:$G$109,3,FALSE)","v":""},{"$f":"VLOOKUP(C2,$A$7:$G$109,4,FALSE)","v":""},{"$f":"VLOOKUP(D2,$A$7:$G$109,5,FALSE)","v":""},{"$f":"VLOOKUP(F2,$A$7:$G$109,6,FALSE)","v":""},{"$f":"VLOOKUP(G2,$A$7:$G$109,7,FALSE)","v":"قرار في الفيزياء"}]
[1,"معيد في الإسلامية","معيد في العربي","معيد في الإنكليزي","معيد في الرياضيات","معيد في الكيمياء","معيد في الفيزياء"]
[2,"معيد في الإسلامية","معيد في العربي","معيد في الإنكليزي","معيد في الرياضيات","معيد في الكيمياء","معيد في الفيزياء"]
[3,"معيد في الإسلامية","معيد في العربي","معيد في الإنكليزي","معيد في الرياضيات","معيد في الكيمياء","معيد في الفيزياء",null,{"$f":"CONCATENATE(I9,\" \",J9,\" \",K9,\" \",L9,\" \",M9,\" \",N9)","v":"معيد في الإسلامية     قرار في الفيزياء"}]
[4,"معيد في الإسلامية","معيد في العربي","معيد في الإنكليزي","معيد في الرياضيات","معيد في الكيمياء","معيد في الفيزياء"]
[5,"معيد في الإسلامية","معيد في العربي","معيد في الإنكليزي","معيد في الرياضيات","معيد في الكيمياء","معيد في الفيزياء"]
[6,"معيد في الإسلامية","معيد في العربي","معيد في الإنكليزي","معيد في الرياضيات","معيد في الكيمياء","معيد في الفيزياء"]
[7,"معيد في الإسلامية","معيد في العربي","معيد في الإنكليزي","معيد في الرياضيات","معيد في الكيمياء","معيد في الفيزياء"]
[8,"معيد في الإسلامية","معيد في العربي","معيد في الإنكليزي","معيد في الرياضيات","معيد في الكيمياء","معيد في الفيزياء"]
[9,"معيد في الإسلامية","معيد في العربي","معيد في الإنكليزي","معيد في الرياضيات","معيد في الكيمياء","معيد في الفيزياء"]
[10,"معيد في الإسلامية","معيد في العربي","معيد في الإنكليزي","معيد في الرياضيات","معيد في الكيمياء","معيد في الفيزياء"]
[11,"معيد في الإسلامية","معيد في العربي","معيد في الإنكليزي","معيد في الرياضيات","معيد في الكيمياء","معيد في الفيزياء"]
[12,"معيد في الإسلامية","معيد في العربي","معيد في الإنكليزي","معيد في الرياضيات","معيد في الكيمياء","معيد في الفيزياء"]
[13,"معيد في الإسلامية","معيد في العربي","معيد في الإنكليزي","معيد في الرياضيات","معيد في الكيمياء","معيد في الفيزياء"]
[14,"معيد في الإسلامية","معيد في العربي","معيد في الإنكليزي","معيد في الرياضيات","معيد في الكيمياء","معيد في الفيزياء"]
[15,"معيد في الإسلامية","معيد في العربي","معيد في الإنكليزي","معيد في الرياضيات","معيد في الكيمياء","معيد في الفيزياء"]
[16,"معيد في الإسلامية","معيد في العربي","معيد في الإنكليزي","معيد في الرياضيات","معيد في الكيمياء","معيد في الفيزياء"]
[17,"معيد في الإسلامية","معيد في العربي","معيد في الإنكليزي","معيد في الرياضيات","معيد في الكيمياء","معيد في الفيزياء"]
[18,"معيد في الإسلامية","معيد في العربي","معيد في الإنكليزي","معيد في الرياضيات","معيد في الكيمياء","معيد في الفيزياء"]
[19,"معيد في الإسلامية","معيد في العربي","معيد في الإنكليزي","معيد في الرياضيات","معيد في الكيمياء","معيد في الفيزياء"]
[20,"معيد في الإسلامية","معيد في العربي","معيد في الإنكليزي","معيد في الرياضيات","معيد في الكيمياء","معيد في الفيزياء"]
[21,"معيد في الإسلامية","معيد في العربي","معيد في الإنكليزي","معيد في الرياضيات","معيد في الكيمياء","معيد في الفيزياء"]
[22,"معيد في الإسلامية","معيد في العربي","معيد في الإنكليزي","معيد في الرياضيات","معيد في الكيمياء","معيد في الفيزياء"]
[23,"معيد في الإسلامية","معيد في العربي","معيد في الإنكليزي","معيد في الرياضيات","معيد في الكيمياء","معيد في الفيزياء"]
[24,"معيد في الإسلامية","معيد في العربي","معيد في الإنكليزي","معيد في الرياضيات","معيد في الكيمياء","معيد في الفيزياء"]
[25,"معيد في الإسلامية","معيد في العربي","معيد في الإنكليزي","معيد في الرياضيات","معيد في الكيمياء","معيد في الفيزياء"]
[26,"معيد في الإسلامية","معيد في العربي","معيد في الإنكليزي","معيد في الرياضيات","معيد في الكيمياء","معيد في الفيزياء"]
[27,"معيد في الإسلامية","معيد في العربي","معيد في الإنكليزي","معيد في الرياضيات","معيد في الكيمياء","معيد في الفيزياء"]
[28,"معيد في الإسلامية","معيد في العربي","معيد في الإنكليزي","معيد في الرياضيات","معيد في الكيمياء","معيد في الفيزياء"]
[29,"معيد في الإسلامية","معيد في العربي","معيد في الإنكليزي","معيد في الرياضيات","معيد في الكيمياء","معيد في الفيزياء"]
[30,"معيد في الإسلامية","معيد في العربي","معيد في الإنكليزي","معيد في الرياضيات","معيد في الكيمياء","معيد في الفيزياء"]
[31,"معيد في الإسلامية","معيد في العربي","معيد في الإنكليزي","معيد في الرياضيات","معيد في الكيمياء","معيد في الفيزياء"]
[32,"معيد في الإسلامية","معيد في العربي","معيد في الإنكليزي","معيد في الرياضيات","معيد في الكيمياء","معيد في الفيزياء"]
[33,"معيد في الإسلامية","معيد في العربي","معيد في الإنكليزي","معيد في الرياضيات","معيد في الكيمياء","معيد في الفيزياء"]
[34,"معيد في الإسلامية","معيد في العربي","معيد في الإنكليزي","معيد في الرياضيات","معيد في الكيمياء","معيد في الفيزياء"]
[35,"معيد في الإسلامية","معيد في العربي","معيد في الإنكليزي","معيد في الرياضيات","معيد في الكيمياء","معيد في الفيزياء"]
[36,"معيد في الإسلامية","معيد في العربي","معيد في الإنكليزي","معيد في الرياضيات","معيد في الكيمياء","معيد في الفيزياء"]
[37,"معيد في الإسلامية","معيد في العربي","معيد في الإنكليزي","معيد في الرياضيات","معيد في الكيمياء","معيد في الفيزياء"]
[38,"معيد في الإسلامية","معيد في العربي","معيد في الإنكليزي","معيد في الرياضيات","معيد في الكيمياء","معيد في الفيزياء"]
[39,"معيد في الإسلامية","معيد في العربي","معيد في الإنكليزي","معيد في الرياضيات","معيد في الكيمياء","معيد في الفيزياء"]
[40,"معيد في الإسلامية","معيد في العربي","معيد في الإنكليزي","معيد في الرياضيات","معيد في الكيمياء","معيد في الفيزياء"]
[41,"معيد في الإسلامية","معيد في العربي","معيد في الإنكليزي","معيد في الرياضيات","معيد في الكيمياء","معيد في الفيزياء"]
[42,"معيد في الإسلامية","معيد في العربي","معيد في الإنكليزي","معيد في الرياضيات","معيد في الكيمياء","معيد في الفيزياء"]
[43,"معيد في الإسلامية","معيد في العربي","معيد في الإنكليزي","معيد في الرياضيات","معيد في الكيمياء","معيد في الفيزياء"]
[44,"معيد في الإسلامية","معيد في العربي","معيد في الإنكليزي","معيد في الرياضيات","معيد في الكيمياء","معيد في الفيزياء"]
[45,"معيد في الإسلامية","معيد في العربي","معيد في الإنكليزي","معيد في الرياضيات","معيد في الكيمياء","معيد في الفيزياء"]
[46,"معيد في الإسلامية","معيد في العربي","معيد في الإنكليزي","معيد في الرياضيات","معيد في الكيمياء","معيد في الفيزياء"]
[47,"معيد في الإسلامية","معيد في العربي","معيد في الإنكليزي","معيد في الرياضيات","معيد في الكيمياء","معيد في الفيزياء"]
[48,"معيد في الإسلامية","معيد في العربي","معيد في الإنكليزي","معيد في الرياضيات","معيد في الكيمياء","معيد في الفيزياء"]
[49,"معيد في الإسلامية","معيد في العربي","معيد في الإنكليزي","معيد في الرياضيات","معيد في الكيمياء","معيد في الفيزياء"]
[50,{"$f":"IF($A59>=50,\"\",0)","v":""},"","","","",""]
[51,{"$f":"IF($A60>=50,\"\",0)","v":""},"","","","",""]
[52,{"$f":"IF($A61>=50,\"\",0)","v":""},"","","","",""]
[53,{"$f":"IF($A62>=50,\"\",0)","v":""},"","","","",""]
[54,{"$f":"IF($A63>=50,\"\",0)","v":""},"","","","",""]
[55,{"$f":"IF($A64>=50,\"\",0)","v":""},"","","","",""]
[56,{"$f":"IF($A65>=50,\"\",0)","v":""},"","","","",""]
[57,{"$f":"IF($A66>=50,\"\",0)","v":""},"","","","",""]
[58,{"$f":"IF($A67>=50,\"\",0)","v":""},"","","","",""]
[59,{"$f":"IF($A68>=50,\"\",0)","v":""},"","","","",""]
[60,{"$f":"IF($A69>=50,\"\",0)","v":""},"","","","",""]
[61,{"$f":"IF($A70>=50,\"\",0)","v":""},"","","","",""]
[62,{"$f":"IF($A71>=50,\"\",0)","v":""},"","","","",""]
[63,{"$f":"IF($A72>=50,\"\",0)","v":""},"","","","",""]
[64,{"$f":"IF($A73>=50,\"\",0)","v":""},"","","","",""]
[65,{"$f":"IF($A74>=50,\"\",0)","v":""},"","","","",""]
[66,{"$f":"IF($A75>=50,\"\",0)","v":""},"","","","",""]
[67,{"$f":"IF($A76>=50,\"\",0)","v":""},"","","","",""]
[68,{"$f":"IF($A77>=50,\"\",0)","v":""},"","","","",""]
[69,{"$f":"IF($A78>=50,\"\",0)","v":""},"","","","",""]
[70,{"$f":"IF($A79>=50,\"\",0)","v":""},"","","","",""]
[71,{"$f":"IF($A80>=50,\"\",0)","v":""},"","","","",""]
[72,{"$f":"IF($A81>=50,\"\",0)","v":""},"","","","",""]
[73,{"$f":"IF($A82>=50,\"\",0)","v":""},"","","","",""]
[74,{"$f":"IF($A83>=50,\"\",0)","v":""},"","","","",""]
[75,{"$f":"IF($A84>=50,\"\",0)","v":""},"","","","",""]
[76,{"$f":"IF($A85>=50,\"\",0)","v":""},"","","","",""]
[77,{"$f":"IF($A86>=50,\"\",0)","v":""},"","","","",""]
[78,{"$f":"IF($A87>=50,\"\",0)","v":""},"","","","",""]
[79,{"$f":"IF($A88>=50,\"\",0)","v":""},"","","","",""]
[80,{"$f":"IF($A89>=50,\"\",0)","v":""},"","","","",""]
[81,{"$f":"IF($A90>=50,\"\",0)","v":""},"","","","",""]
[82,{"$f":"IF($A91>=50,\"\",0)","v":""},"","","","",""]
[83,{"$f":"IF($A92>=50,\"\",0)","v":""},"","","","",""]
[84,{"$f":"IF($A93>=50,\"\",0)","v":""},"","","","",""]
[85,{"$f":"IF($A94>=50,\"\",0)","v":""},"","","","",""]
[86,{"$f":"IF($A95>=50,\"\",0)","v":""},"","","","",""]
[87,{"$f":"IF($A96>=50,\"\",0)","v":""},"","","","",""]
[88,{"$f":"IF($A97>=50,\"\",0)","v":""},"","","","",""]
[89,{"$f":"IF($A98>=50,\"\",0)","v":""},"","","","",""]
[90,{"$f":"IF($A99>=50,\"\",0)","v":""},"","","","",""]
[91,{"$f":"IF($A100>=50,\"\",0)","v":""},"","","","",""]
[92,{"$f":"IF($A101>=50,\"\",0)","v":""},"","","","",""]
[93,{"$f":"IF($A102>=50,\"\",0)","v":""},"","","","",""]
[94,{"$f":"IF($A103>=50,\"\",0)","v":""},"","","","",""]
[95,{"$f":"IF($A104>=50,\"\",0)","v":""},"","","","",""]
[96,{"$f":"IF($A105>=50,\"\",0)","v":""},"","","","",""]
[97,{"$f":"IF($A106>=50,\"\",0)","v":""},"","","","",""]
[98,{"$f":"IF($A107>=50,\"\",0)","v":""},"","","","",""]
[99,{"$f":"IF($A108>=50,\"\",0)","v":""},"","","","",""]
[100,{"$f":"IF($A109>=50,\"\",0)","v":""},"","","","",""]

{"sheet":"ورقة1","index":2,"n_rows":5,"n_cols":10,"rows_kept":5,"cut":false,"hidden":true,"merged":[[0,9,0,17],[1,9,1,17],[2,9,2,17],[3,9,3,17],[4,9,4,17]]}
["ت","اسم الطالب","إسلامية","عربي","إنكليزي","رياضيات","كيمياء","فيزياء",null,"النتيجة"]
[1,"موسى سالم","قرار","قرار",55,"قرار","معيد",90,null,"قرار في الإسلامية و قرار في العربي وقرار"]
[2,"سامح كريم","قرار","قرار",55,"قرار","معيد",90]
[3,"مهند أنور","قرار","قرار",55,"قرار","معيد",90]
[4,"نور علي",78,"معيد","قرار","قرار",90,44]